fUSD/lending_fUSD_20240318
["ID","MTS","AMOUNT","RATE_DAILY","PERIOD"]
[319499905,1710802255101,-663.09,0.00031506,4]
[319499906,1710802255110,-505.71,0.00031506,4]
[319499907,1710802255119,-155.0,0.00031508,2]
[319499908,1710802255128,-162.60416181,0.00031635,7]
[319499909,1710802255137,-470.7,0.00031644,2]
[319499910,1710802255146,-216.0,0.00031644,2]
[319499911,1710802255155,-327.0,0.00031644,2]
[319499912,1710802255164,-223.6239506,0.00031669,3]
[319499913,1710802255173,-151.05666748,0.00031689,2]
[319499914,1710802255186,-150.0,0.0003172,2]
[319499915,1710802255195,-167.82979611,0.00031742,7]
[319499916,1710802255205,-663.61615817,0.0003178,4]
[319499917,1710802255214,-663.32063128,0.0003178,4]
[319499918,1710802255223,-505.9,0.0003178,4]
[319499919,1710802255233,-180.592762,0.00031781,30]
[319499920,1710802255242,-180.59276199,0.00031781,30]
[319499921,1710802255251,-150.95,0.00031781,2]
[319499922,1710802255260,-150.0,0.00031781,2]
[319499923,1710802255270,-155.18569218,0.00031791,7]
[319499924,1710802255279,-500.0,0.00031856,10]
[319499925,1710802255288,-3100.5863785,0.00031866,3]
[319499926,1710802255298,-153.05383812,0.00031886,7]
[319499927,1710802255309,-180.592762,0.0003189,30]
[319499928,1710802255318,-180.59276199,0.0003189,30]
[319499929,1710802255327,-462.89420256,0.00031902,2]
[319499930,1710802255338,-601.35692476,0.00031913,2]
[319499931,1710802255347,-465.47687698,0.00031922,2]
[319499932,1710802255356,-466.74640486,0.00031946,2]
[319499933,1710802255365,-170.57418274,0.00031953,2]
[319499934,1710802255375,-920.92208442,0.00031965,2]
[319499935,1710802255384,-457.03479469,0.00031972,2]
[319499936,1710802255395,-463.55228236,0.00031977,2]
[319499937,1710802255404,-458.69629842,0.00031983,2]
[319499938,1710802255413,-500.0,0.00031985,2]
[319499939,1710802255422,-500.0,0.00031985,2]
[319499940,1710802255432,-500.0,0.00031985,2]
[319499941,1710802255442,-500.0,0.00031985,2]
[319499942,1710802255450,-500.0,0.00031985,2]
[319499943,1710802255460,-457.87521643,0.00031995,2]
[319499944,1710802255469,-152.36,0.00032,2]
[319499945,1710802255479,-152.36,0.00032,2]
[319499946,1710802255488,-152.36,0.00032,2]
[319499947,1710802255497,-152.36,0.00032,2]
[319499948,1710802255506,-152.36,0.00032,2]
[319499949,1710802255515,-152.36,0.00032,2]
[319499950,1710802255524,-152.36,0.00032,2]
[319499951,1710802255533,-152.36,0.00032,2]
[319499952,1710802255542,-152.36,0.00032,2]
[319499953,1710802255551,-152.36,0.00032,2]
[319499954,1710802255560,-152.36,0.00032,2]
[319499955,1710802255569,-152.36,0.00032,2]
[319499956,1710802255578,-152.36,0.00032,2]
[319499957,1710802255587,-152.36,0.00032,2]
[319499958,1710802255596,-152.36,0.00032,2]
[319499959,1710802255605,-152.36,0.00032,2]
[319499960,1710802255615,-152.36,0.00032,2]
[319499961,1710802255625,-152.36,0.00032,2]
[319499962,1710802255634,-180.592762,0.00032,30]
[319499963,1710802255643,-180.59276199,0.00032,30]
[319499964,1710802255653,-600.0,0.00032,33]
[319499965,1710802255662,-300.0,0.00032,2]
[319499966,1710802255672,-260.53,0.00032,7]
[319499967,1710802255685,-999.66,0.0003204,2]
[319499968,1710802255695,-180.592762,0.00032137,30]
[319499969,1710802255704,-180.59276199,0.00032137,30]
[319499970,1710802255713,-518.92,0.00032137,7]
[319499971,1710802255723,-151.05666748,0.00032165,2]
[319499972,1710802255732,-1070.40293175,0.00032192,2]
[319499973,1710802255741,-357.97505957,0.000322,35]
[319499974,1710802255751,-162.60416181,0.00032214,7]
[319499975,1710802255761,-180.592762,0.00032247,30]
[319499976,1710802255770,-180.59276199,0.00032247,30]
[319499977,1710802255782,-162.60416182,0.00032253,7]
[319499978,1710802255791,-150.0,0.00032296,2]
[319499979,1710802255801,-619.35,0.00032329,2]
[319499980,1710802255810,-150.0,0.00032329,2]
[319499981,1710802255819,-400.0,0.00032335,2]
[319499982,1710802255829,-180.592762,0.00032384,30]
[319499983,1710802255838,-180.59276199,0.00032384,30]
[319499984,1710802255847,-500.0,0.00032404,10]
[319499985,1710802255856,-258.031907,0.00032448,7]
[319499986,1710802255866,-180.592762,0.00032493,30]
[319499987,1710802255875,-180.59276199,0.00032493,30]
[319499988,1710802255884,-300.0,0.000325,2]
[319499989,1710802255893,-151.07221851,0.00032541,7]
[319499990,1710802255902,-546.1181314,0.00032544,6]
[319499991,1710802255911,-152.0,0.0003257,6]
[319499992,1710802255920,-151.07221856,0.00032584,7]
[319499993,1710802255932,-331.14,0.0003259,2]
[319499994,1710802255942,-380.0,0.0003259,2]
[319499995,1710802255951,-380.0,0.0003259,2]
[319499996,1710802255960,-380.0,0.0003259,2]
[319499997,1710802255969,-380.0,0.0003259,2]
[319499998,1710802255979,-380.0,0.0003259,2]
[319499999,1710802255988,-380.0,0.0003259,2]
[319500000,1710802255997,-380.0,0.0003259,2]
[319500001,1710802256006,-380.0,0.0003259,2]
[319500002,1710802256015,-170.57418274,0.00032593,2]
[319500003,1710802256024,-999.66,0.000326,2]
[319500004,1710802256033,-319.14,0.000326,2]
[319500005,1710802256042,-180.592762,0.00032603,30]
[319500006,1710802256051,-180.59276199,0.00032603,30]
[319500007,1710802256061,-150.0,0.0003263,2]
[319500008,1710802256070,-210.0,0.0003264,2]
[319500009,1710802256079,-251.0,0.0003264,2]
[319500010,1710802256088,-151.05666748,0.00032642,2]
[319500011,1710802256097,-153.05383813,0.00032684,7]
[319500012,1710802256106,-152.36,0.000327,2]
[319500013,1710802256115,-152.36,0.000327,2]
[319500014,1710802256124,-152.36,0.000327,2]
[319500015,1710802256134,-152.36,0.000327,2]
[319500016,1710802256143,-152.36,0.000327,2]
[319500017,1710802256152,-152.36,0.000327,2]
[319500018,1710802256161,-152.36,0.000327,2]
[319500019,1710802256171,-152.36,0.000327,2]
[319500020,1710802256182,-152.36,0.000327,2]
[319500021,1710802256192,-152.36,0.000327,2]
[319500022,1710802256201,-152.36,0.000327,2]
[319500023,1710802256209,-152.36,0.000327,2]
[319500024,1710802256219,-152.36,0.000327,2]
[319500025,1710802256227,-241.39,0.000327,2]
[319500026,1710802256236,-241.39,0.000327,2]
[319500027,1710802256245,-241.39,0.000327,2]
[319500028,1710802256254,-241.39,0.000327,2]
[319500029,1710802256263,-241.39,0.000327,2]
[319500030,1710802256272,-241.39,0.000327,2]
[319500031,1710802256281,-241.39,0.000327,2]
[319500032,1710802256291,-241.39,0.000327,2]
[319500033,1710802256301,-241.39,0.000327,2]
[319500034,1710802256311,-241.39,0.000327,2]
[319500035,1710802256319,-241.39,0.000327,2]
[319500036,1710802256329,-241.39,0.000327,2]
[319500037,1710802256338,-241.39,0.000327,2]
[319500038,1710802256347,-241.39,0.000327,2]
[319500039,1710802256356,-241.39,0.000327,2]
[319500040,1710802256365,-241.39,0.000327,2]
[319500041,1710802256375,-241.39,0.000327,2]
[319500042,1710802256384,-241.39,0.000327,2]
[319500043,1710802256393,-241.39,0.000327,2]
[319500044,1710802256402,-241.39,0.000327,2]
[319500045,1710802256411,-150.0,0.00032709,2]
[319500046,1710802256420,-150.0,0.0003272,2]
[319500047,1710802256430,-500.0,0.0003272,2]
[319500048,1710802256440,-180.592762,0.0003274,30]
[319500049,1710802256449,-180.59276199,0.0003274,30]
[319500050,1710802256458,-431.21,0.00032767,2]
[319500051,1710802256467,-769.024,0.0003283,4]
[319500052,1710802256476,-769.024,0.0003283,4]
[319500053,1710802256486,-769.025,0.0003283,4]
[319500054,1710802256495,-769.024,0.0003283,4]
[319500055,1710802256504,-769.024,0.0003283,4]
[319500056,1710802256513,-150.0,0.00032831,2]
[319500057,1710802256522,-150.0,0.00032841,2]
[319500058,1710802256531,-180.592762,0.00032849,30]
[319500059,1710802256540,-180.59276199,0.00032849,30]
[319500060,1710802256550,-500.0,0.00032876,4]
[319500061,1710802256558,-552.44,0.00032876,4]
[319500062,1710802256568,-500.0,0.00032876,4]
[319500063,1710802256577,-500.0,0.00032876,4]
[319500064,1710802256586,-500.0,0.00032876,4]
[319500065,1710802256595,-500.0,0.00032876,4]
[319500066,1710802256603,-500.0,0.00032876,4]
[319500067,1710802256613,-500.0,0.00032876,3]
[319500068,1710802256623,-500.0,0.00032876,3]
[319500069,1710802256632,-1257.49,0.00032876,3]
[319500070,1710802256641,-500.0,0.00032876,3]
[319500071,1710802256651,-500.0,0.00032876,3]
[319500072,1710802256661,-500.0,0.00032876,3]
[319500073,1710802256671,-500.0,0.00032876,3]
[319500074,1710802256682,-500.0,0.00032876,3]
[319500075,1710802256692,-800.52,0.00032876,3]
[319500076,1710802256702,-500.0,0.00032876,3]
[319500077,1710802256711,-500.0,0.00032876,3]
[319500078,1710802256721,-833.38,0.00032876,3]
[319500079,1710802256730,-500.0,0.00032876,3]
[319500080,1710802256740,-720.24,0.00032876,3]
[319500081,1710802256749,-500.0,0.00032876,3]
[319500082,1710802256758,-500.0,0.00032876,3]
[319500083,1710802256767,-500.0,0.00032876,3]
[319500084,1710802256776,-514.82685995,0.00032876,3]
[319500085,1710802256785,-500.0,0.00032876,3]
[319500086,1710802256795,-500.0,0.00032876,3]
[319500087,1710802256805,-500.0,0.00032876,3]
[319500088,1710802256814,-500.0,0.00032876,3]
[319500089,1710802256823,-500.0,0.00032876,3]
[319500090,1710802256832,-500.0,0.00032876,3]
[319500091,1710802256842,-850.01,0.00032876,3]
[319500092,1710802256851,-500.0,0.00032876,3]
[319500093,1710802256860,-500.0,0.00032876,3]
[319500094,1710802256869,-509.10072651,0.00032876,3]
[319500095,1710802256878,-500.0,0.00032876,3]
[319500096,1710802256887,-844.81,0.00032876,3]
[319500097,1710802256896,-500.0,0.00032876,3]
[319500098,1710802256905,-1000.0,0.00032876,2]
[319500099,1710802256914,-1000.0,0.00032876,2]
[319500100,1710802256924,-552.30982777,0.00032876,2]
[319500101,1710802256934,-327.0,0.00032876,2]
[319500102,1710802256945,-319.71,0.00032877,2]
[319500103,1710802256955,-150.95,0.00032877,2]
[319500104,1710802256964,-752.04,0.00032877,10]
[319500105,1710802256973,-150.0,0.00032877,2]
[319500106,1710802256982,-155.0,0.00032878,2]
[319500107,1710802256991,-999.66,0.0003288,2]
[319500108,1710802257000,-12952.88923281,0.000329,30]
[319500109,1710802257009,-241.39,0.000329,2]
[319500110,1710802257018,-241.39,0.000329,2]
[319500111,1710802257028,-241.39,0.000329,2]
[319500112,1710802257037,-241.39,0.000329,2]
[319500113,1710802257046,-241.39,0.000329,2]
[319500114,1710802257055,-241.39,0.000329,2]
[319500115,1710802257064,-241.39,0.000329,2]
[319500116,1710802257073,-241.39,0.000329,2]
[319500117,1710802257082,-241.39,0.000329,2]
[319500118,1710802257092,-241.39,0.000329,2]
[319500119,1710802257101,-241.39,0.000329,2]
[319500120,1710802257110,-241.39,0.000329,2]
[319500121,1710802257119,-241.39,0.000329,2]
[319500122,1710802257127,-241.39,0.000329,2]
[319500123,1710802257136,-241.39,0.000329,2]
[319500124,1710802257146,-241.39,0.000329,2]
[319500125,1710802257155,-241.39,0.000329,2]
[319500126,1710802257164,-241.39,0.000329,2]
[319500127,1710802257173,-241.39,0.000329,2]
[319500128,1710802257184,-241.39,0.000329,2]
[319500129,1710802257193,-150.0,0.00032905,2]
[319500130,1710802257202,-150.0,0.00032912,2]
[319500131,1710802257211,-150.0,0.0003292,2]
[319500132,1710802257221,-150.0,0.00032932,2]
[319500133,1710802257229,-150.0,0.00032933,2]
[319500134,1710802257239,-150.0,0.00032938,2]
[319500135,1710802257248,-150.0,0.00032949,2]
[319500136,1710802257257,-150.0,0.00032951,2]
[319500137,1710802257266,-150.0,0.00032981,2]
[319500138,1710802257274,-210.69155566,0.00032986,30]
[319500139,1710802257284,-180.592762,0.00032986,30]
[319500140,1710802257294,-180.59276199,0.00032986,30]
[319500141,1710802257306,-150.0,0.00032989,2]
[319500142,1710802257316,-600.0,0.00033,34]
[319500143,1710802257325,-10000.0,0.00033,3]
[319500144,1710802257335,-150.0,0.00033,2]
[319500145,1710802257344,-300.0,0.00033,2]
[319500146,1710802257353,-150.0,0.00033,30]
[319500147,1710802257362,-205.0,0.00033,2]
[319500148,1710802257371,-150.0,0.00033027,2]
[319500149,1710802257381,-150.0,0.00033031,2]
[319500150,1710802257390,-150.0,0.00033033,2]
[319500151,1710802257399,-150.0,0.0003304,2]
[319500152,1710802257408,-150.0,0.00033056,2]
[319500153,1710802257417,-150.0,0.00033072,2]
[319500154,1710802257425,-210.69155566,0.00033096,30]
[319500155,1710802257435,-180.592762,0.00033096,30]
[319500156,1710802257444,-180.59276199,0.00033096,30]
[319500157,1710802257454,-241.39,0.000331,2]
[319500158,1710802257463,-241.39,0.000331,2]
[319500159,1710802257472,-241.39,0.000331,2]
[319500160,1710802257484,-241.39,0.000331,2]
[319500161,1710802257507,-241.39,0.000331,2]
[319500162,1710802257518,-241.39,0.000331,2]
[319500163,1710802257527,-241.39,0.000331,2]
[319500164,1710802257536,-241.39,0.000331,2]
[319500165,1710802257545,-241.39,0.000331,2]
[319500166,1710802257554,-241.39,0.000331,2]
[319500167,1710802257563,-241.39,0.000331,2]
[319500168,1710802257573,-241.39,0.000331,2]
[319500169,1710802257582,-241.39,0.000331,2]
[319500170,1710802257590,-241.39,0.000331,2]
[319500171,1710802257600,-241.39,0.000331,2]
[319500172,1710802257609,-241.39,0.000331,2]
[319500173,1710802257618,-241.39,0.000331,2]
[319500174,1710802257627,-241.39,0.000331,2]
[319500175,1710802257636,-241.39,0.000331,2]
[319500176,1710802257645,-241.39,0.000331,2]
[319500177,1710802257655,-1512.0,0.000331,7]
[319500178,1710802257664,-150.0,0.00033101,2]
[319500179,1710802257673,-150.0,0.00033114,2]
[319500180,1710802257683,-150.0,0.00033115,2]
[319500181,1710802257692,-151.05666748,0.00033119,2]
[319500182,1710802257701,-150.49396833,0.00033123,30]
[319500183,1710802257710,-150.0,0.00033141,2]
[319500184,1710802257719,-150.0,0.00033145,2]
[319500185,1710802257728,-500.0,0.0003315,4]
[319500186,1710802257737,-552.44,0.0003315,4]
[319500187,1710802257746,-500.0,0.0003315,4]
[319500188,1710802257755,-500.0,0.0003315,4]
[319500189,1710802257764,-500.0,0.0003315,4]
[319500190,1710802257773,-500.0,0.0003315,4]
[319500191,1710802257782,-500.0,0.0003315,4]
[319500192,1710802257792,-500.0,0.0003315,3]
[319500193,1710802257802,-635.7726588,0.0003315,3]
[319500194,1710802257811,-1257.49,0.0003315,3]
[319500195,1710802257820,-500.0,0.0003315,3]
[319500196,1710802257829,-500.0,0.0003315,3]
[319500197,1710802257838,-500.0,0.0003315,3]
[319500198,1710802257846,-500.0,0.0003315,3]
[319500199,1710802257855,-800.52,0.0003315,3]
[319500200,1710802257865,-500.0,0.0003315,3]
[319500201,1710802257874,-833.38,0.0003315,3]
[319500202,1710802257884,-720.24,0.0003315,3]
[319500203,1710802257893,-500.0,0.0003315,3]
[319500204,1710802257903,-500.0,0.0003315,3]
[319500205,1710802257912,-500.0,0.0003315,3]
[319500206,1710802257921,-500.0,0.0003315,3]
[319500207,1710802257932,-500.0,0.0003315,3]
[319500208,1710802257942,-500.0,0.0003315,3]
[319500209,1710802257951,-500.0,0.0003315,3]
[319500210,1710802257960,-500.0,0.0003315,3]
[319500211,1710802257969,-850.01,0.0003315,3]
[319500212,1710802257979,-500.0,0.0003315,3]
[319500213,1710802257989,-500.0,0.0003315,3]
[319500214,1710802257998,-500.0,0.0003315,3]
[319500215,1710802258007,-844.81,0.0003315,3]
[319500216,1710802258016,-500.0,0.0003315,3]
[319500217,1710802258025,-14343.928,0.00033165,4]
[319500218,1710802258035,-14343.928,0.00033165,4]
[319500219,1710802258044,-14343.929,0.00033165,4]
[319500220,1710802258053,-14343.928,0.00033165,4]
[319500221,1710802258063,-14343.928,0.00033165,4]
[319500222,1710802258072,-150.0,0.00033166,2]
[319500223,1710802258081,-150.0,0.00033179,2]
[319500224,1710802258090,-150.0,0.00033189,2]
[319500225,1710802258100,-150.0,0.00033192,2]
[319500226,1710802258109,-150.0,0.00033194,2]
[319500227,1710802258119,-150.0,0.00033197,2]
[319500228,1710802258128,-150.0,0.00033206,2]
[319500229,1710802258137,-150.0,0.00033223,2]
[319500230,1710802258147,-150.0,0.00033225,2]
[319500231,1710802258156,-216.0,0.00033226,2]
[319500232,1710802258166,-150.0,0.00033232,2]
[319500233,1710802258175,-170.57418274,0.00033232,2]
[319500234,1710802258189,-210.69155566,0.00033233,30]
[319500235,1710802258199,-180.592762,0.00033233,30]
[319500236,1710802258209,-180.59276199,0.00033233,30]
[319500237,1710802258219,-150.0,0.00033237,2]
[319500238,1710802258229,-150.0,0.00033237,2]
[319500239,1710802258238,-150.0,0.00033246,2]
[319500240,1710802258247,-150.0,0.00033259,2]
[319500241,1710802258257,-150.0,0.00033263,2]
[319500242,1710802258266,-150.0,0.00033265,2]
[319500243,1710802258276,-150.0,0.00033282,2]
[319500244,1710802258285,-241.39,0.000333,2]
[319500245,1710802258298,-241.39,0.000333,2]
[319500246,1710802258308,-241.39,0.000333,2]
[319500247,1710802258317,-241.39,0.000333,2]
[319500248,1710802258326,-241.39,0.000333,2]
[319500249,1710802258336,-241.39,0.000333,2]
[319500250,1710802258346,-241.39,0.000333,2]
[319500251,1710802258355,-241.39,0.000333,2]
[319500252,1710802258364,-241.39,0.000333,2]
[319500253,1710802258376,-241.39,0.000333,2]
[319500254,1710802258386,-241.39,0.000333,2]
[319500255,1710802258396,-241.39,0.000333,2]
[319500256,1710802258405,-241.39,0.000333,2]
[319500257,1710802258415,-241.39,0.000333,2]
[319500258,1710802258425,-241.39,0.000333,2]
[319500259,1710802258437,-241.39,0.000333,2]
[319500260,1710802258452,-241.39,0.000333,2]
[319500261,1710802258462,-241.39,0.000333,2]
[319500262,1710802258471,-241.39,0.000333,2]
[319500263,1710802258481,-241.39,0.000333,2]
[319500264,1710802258491,-150.0,0.00033323,2]
[319500265,1710802258501,-150.0,0.00033335,2]
[319500266,1710802258511,-150.0,0.00033339,2]
[319500267,1710802258521,-210.69155566,0.00033342,30]
[319500268,1710802258530,-180.592762,0.00033342,30]
[319500269,1710802258539,-180.59276199,0.00033342,30]
[319500270,1710802258549,-150.0,0.00033346,2]
[319500271,1710802258559,-150.0,0.00033372,2]
[319500272,1710802258568,-500.0,0.00033424,4]
[319500273,1710802258577,-552.44,0.00033424,4]
[319500274,1710802258590,-500.0,0.00033424,4]
[319500275,1710802258600,-500.0,0.00033424,4]
[319500276,1710802258610,-500.0,0.00033424,4]
[319500277,1710802258619,-500.0,0.00033424,4]
[319500278,1710802258629,-500.0,0.00033424,3]
[319500279,1710802258638,-1257.49,0.00033424,3]
[319500280,1710802258649,-500.0,0.00033424,3]
[319500281,1710802258658,-500.0,0.00033424,3]
[319500282,1710802258668,-500.0,0.00033424,3]
[319500283,1710802258679,-800.52,0.00033424,3]
[319500284,1710802258691,-500.0,0.00033424,3]
[319500285,1710802258701,-833.38,0.00033424,3]
[319500286,1710802258711,-720.24,0.00033424,3]
[319500287,1710802258721,-500.0,0.00033424,3]
[319500288,1710802258730,-500.0,0.00033424,3]
[319500289,1710802258740,-500.0,0.00033424,3]
[319500290,1710802258750,-500.0,0.00033424,3]
[319500291,1710802258760,-500.0,0.00033424,3]
[319500292,1710802258769,-500.0,0.00033424,3]
[319500293,1710802258779,-500.0,0.00033424,3]
[319500294,1710802258789,-500.0,0.00033424,3]
[319500295,1710802258799,-850.01,0.00033424,3]
[319500296,1710802258808,-500.0,0.00033424,3]
[319500297,1710802258818,-500.0,0.00033424,3]
[319500298,1710802258828,-500.0,0.00033424,3]
[319500299,1710802258837,-844.81,0.00033424,3]
[319500300,1710802258846,-500.0,0.00033424,3]
[319500301,1710802258856,-150.0,0.00033425,2]
[319500302,1710802258866,-150.0,0.00033435,2]
[319500303,1710802258875,-999.66,0.0003344,2]
[319500304,1710802258885,-150.49396833,0.00033452,30]
[319500305,1710802258895,-210.69155566,0.00033452,30]
[319500306,1710802258905,-180.592762,0.00033452,30]
[319500307,1710802258915,-180.59276199,0.00033452,30]
[319500308,1710802258925,-463.11022735,0.00033478,2]
[319500309,1710802258938,-150.0,0.00033483,2]
[319500310,1710802258948,-600.0,0.0003349,30]
[319500311,1710802258957,-110950.8659564,0.00033491,2]
[319500312,1710802258967,-216.1150622,0.00033491,2]
[319500313,1710802258977,-1448.0461516,0.00033491,2]
[319500314,1710802258987,-152.0,0.00033496,7]
[319500315,1710802258996,-151.15829181,0.00033496,4]
[319500316,1710802259006,-150.0,0.00033497,2]
[319500317,1710802259016,-205.27555849,0.00033499,2]
[319500318,1710802259026,-5003.12754987,0.00033499,2]
[319500319,1710802259035,-500.0,0.000335,10]
[319500320,1710802259045,-16003.29210438,0.000335,30]
[319500321,1710802259055,-243.32,0.000335,6]
[319500322,1710802259065,-150.0,0.000335,7]
[319500323,1710802259075,-150.0,0.000335,7]
[319500324,1710802259084,-150.0,0.000335,7]
[319500325,1710802259094,-150.0,0.000335,7]
[319500326,1710802259104,-150.0,0.000335,7]
[319500327,1710802259114,-350.381936,0.000335,6]
[319500328,1710802259123,-150.0,0.000335,7]
[319500329,1710802259135,-300.0,0.000335,3]
[319500330,1710802259145,-210.0,0.000335,2]
[319500331,1710802259155,-215.0,0.000335,2]
[319500332,1710802259164,-251.0,0.000335,2]
[319500333,1710802259174,-150.0,0.000335,6]
[319500334,1710802259186,-219.0,0.000335,2]
[319500335,1710802259196,-211.0,0.000335,2]
[319500336,1710802259206,-219.0,0.000335,2]
[319500337,1710802259217,-215.0,0.000335,2]
[319500338,1710802259228,-211.0,0.000335,2]
[319500339,1710802259238,-204.0,0.000335,2]
[319500340,1710802259248,-241.39,0.000335,2]
[319500341,1710802259258,-241.39,0.000335,2]
[319500342,1710802259268,-241.39,0.000335,2]
[319500343,1710802259278,-241.39,0.000335,2]
[319500344,1710802259287,-241.39,0.000335,2]
[319500345,1710802259297,-241.39,0.000335,2]
[319500346,1710802259309,-241.39,0.000335,2]
[319500347,1710802259319,-241.39,0.000335,2]
[319500348,1710802259328,-241.39,0.000335,2]
[319500349,1710802259337,-241.39,0.000335,2]
[319500350,1710802259348,-241.39,0.000335,2]
[319500351,1710802259357,-241.39,0.000335,2]
[319500352,1710802259367,-241.39,0.000335,2]
[319500353,1710802259377,-241.39,0.000335,2]
[319500354,1710802259387,-241.39,0.000335,2]
[319500355,1710802259398,-241.39,0.000335,2]
[319500356,1710802259407,-241.39,0.000335,2]
[319500357,1710802259417,-241.39,0.000335,2]
[319500358,1710802259427,-241.39,0.000335,2]
[319500359,1710802259437,-241.39,0.000335,2]
[319500360,1710802259447,-214.0,0.000335,2]
[319500361,1710802259456,-214.0,0.000335,2]
[319500362,1710802259465,-210.0,0.000335,2]
[319500363,1710802259475,-215.0,0.000335,2]
[319500364,1710802259484,-204.0,0.000335,2]
[319500365,1710802259494,-204.0,0.000335,2]
[319500366,1710802259503,-215.0,0.000335,2]
[319500367,1710802259512,-214.0,0.000335,2]
[319500368,1710802259522,-5829.76,0.00033514,30]
[319500369,1710802259531,-5829.76,0.00033514,30]
[319500370,1710802259541,-150.0,0.00033531,7]
[319500371,1710802259550,-150.0,0.0003356,7]
[319500372,1710802259560,-150.0,0.00033561,7]
[319500373,1710802259569,-150.0,0.00033575,7]
[319500374,1710802259578,-150.0,0.00033592,7]
[319500375,1710802259588,-151.05666748,0.00033595,2]
[319500376,1710802259598,-150.0,0.0003362,7]
[319500377,1710802259608,-150.0,0.00033622,7]
[319500378,1710802259617,-150.0,0.0003365,7]
[319500379,1710802259627,-150.0,0.00033653,7]
[319500380,1710802259636,-150.0,0.0003368,7]
[319500381,1710802259647,-150.0,0.00033684,7]
[319500382,1710802259657,-150.0,0.00033697,2]
[319500383,1710802259666,-500.0,0.00033698,4]
[319500384,1710802259676,-2171.7,0.00033698,4]
[319500385,1710802259687,-500.0,0.00033698,4]
[319500386,1710802259696,-552.44,0.00033698,4]
[319500387,1710802259706,-500.0,0.00033698,4]
[319500388,1710802259716,-500.0,0.00033698,4]
[319500389,1710802259727,-500.0,0.00033698,4]
[319500390,1710802259737,-500.0,0.00033698,4]
[319500391,1710802259747,-500.0,0.00033698,3]
[319500392,1710802259757,-1257.49,0.00033698,3]
[319500393,1710802259767,-500.0,0.00033698,3]
[319500394,1710802259777,-500.0,0.00033698,3]
[319500395,1710802259787,-500.0,0.00033698,3]
[319500396,1710802259797,-800.52,0.00033698,3]
[319500397,1710802259806,-833.38,0.00033698,3]
[319500398,1710802259816,-720.24,0.00033698,3]
[319500399,1710802259826,-500.0,0.00033698,3]
[319500400,1710802259835,-500.0,0.00033698,3]
[319500401,1710802259845,-500.0,0.00033698,3]
[319500402,1710802259855,-500.0,0.00033698,3]
[319500403,1710802259865,-500.0,0.00033698,3]
[319500404,1710802259875,-500.0,0.00033698,3]